bitfinex/quotes_BTCUSD_20240730
["timestamp","ask_amount","ask_price","bid_price","bid_amount"]
[1722320845309,0.001,66757.0,66754.0,0.00284569]
[1722320845512,0.0235014,66755.0,66754.0,0.00284569]
[1722320845967,0.09086843,66755.0,66754.0,0.00284569]
[1722320846213,0.09086843,66755.0,66753.0,0.008]
[1722320846214,0.06941326,66755.0,66753.0,0.008]
[1722320846368,0.00121425,66754.0,66753.0,0.008]
[1722320846572,0.00121425,66754.0,66752.0,0.01]
[1722320846872,0.00121425,66754.0,66751.0,0.119848]
[1722320847189,0.00121425,66753.0,66751.0,0.119848]
[1722320847923,0.00121425,66753.0,66752.0,0.128846]
[1722320848402,0.00121425,66753.0,66752.0,0.368539]
[1722320848601,0.001,66754.0,66753.0,0.119844]
[1722320848801,0.04591221,66754.0,66753.0,0.119844]
[1722320848957,0.001,66754.0,66753.0,0.119844]
[1722320849166,0.04612646,66754.0,66750.0,0.1]
[1722320849367,0.04612646,66754.0,66748.0,0.240619]
[1722320849368,0.12581221,66754.0,66749.0,0.1]
[1722320849567,0.00206573,66753.0,66751.0,0.139847]
[1722320849942,0.00106573,66753.0,66751.0,0.119847]
[1722320850970,0.00206573,66753.0,66751.0,0.130847]
[1722320851348,0.0449142,66752.0,66751.0,0.130847]
[1722320851544,0.0449142,66752.0,66751.0,0.240847]
[1722320851946,0.04797993,66753.0,66751.0,0.240847]
[1722320852621,0.04798204,66753.0,66751.0,0.240847]
[1722320852792,0.04798204,66753.0,66751.0,0.230847]
[1722320852793,0.04491631,66752.0,66751.0,0.230847]
[1722320852995,0.001,66752.0,66751.0,0.230847]
[1722320853204,0.00221425,66752.0,66751.0,0.230847]
[1722320853491,0.0471317,66752.0,66751.0,0.230847]
[1722320853838,0.0471317,66752.0,66751.0,0.12384569]
[1722320854038,0.1075317,66752.0,66751.0,0.12384569]
[1722320854233,0.10631745,66752.0,66751.0,0.11384569]
[1722320854721,0.06361425,66752.0,66751.0,0.12484569]
[1722320854845,0.06361425,66752.0,66751.0,0.24469369]
[1722320855040,0.10853415,66752.0,66751.0,0.24469369]
[1722320856497,0.00321425,66752.0,66751.0,0.24469369]
[1722320857198,0.00321425,66752.0,66751.0,0.12484569]
[1722320857399,0.04813525,66752.0,66751.0,0.02484569]
[1722320857602,0.00321425,66752.0,66751.0,0.46128969]
[1722320857927,0.00321425,66752.0,66751.0,1.06318451]
[1722320857928,0.02550184,66752.0,66751.0,1.06318451]
[1722320860739,0.02550184,66752.0,66751.0,1.0631823]
[1722320860740,0.02532157,66752.0,66751.0,1.0631823]
[1722320861256,0.02532157,66752.0,66751.0,0.93868569]
[1722320861613,0.02532157,66752.0,66751.0,1.06318566]
[1722320862370,0.00181973,66752.0,66751.0,1.06318566]
[1722320863413,0.00181973,66752.0,66751.0,1.06318315]
[1722320866688,0.00181973,66752.0,66751.0,0.93868569]
[1722320866875,0.00181973,66752.0,66751.0,1.06318619]
[1722320867204,0.02532069,66752.0,66751.0,0.98628619]
[1722320867373,0.00181973,66752.0,66751.0,0.98628619]
[1722320868766,0.00181973,66752.0,66751.0,0.92538619]
[1722320869980,0.02532078,66752.0,66751.0,0.80088569]
[1722320870187,0.02532078,66752.0,66751.0,0.92538642]
[1722320870390,0.02532078,66752.0,66751.0,0.80088569]
[1722320870391,0.00181973,66752.0,66751.0,0.80088569]
[1722320870589,0.00181973,66752.0,66751.0,0.92538645]
[1722320873461,0.00181973,66752.0,66751.0,1.30658245]
[1722320873807,0.025321,66752.0,66751.0,1.30658245]
[1722320879689,0.025321,66752.0,66751.0,1.48726549]
[1722320879895,0.025321,66752.0,66751.0,1.78194873]
[1722320880113,0.025321,66752.0,66751.0,1.75994873]
[1722320880542,0.025321,66752.0,66751.0,1.52024594]
[1722320880761,0.001,66752.0,66751.0,1.50924594]
[1722320881113,0.002,66752.0,66751.0,1.52024594]
[1722320881341,0.001,66752.0,66751.0,1.50924594]
[1722320881543,0.001,66752.0,66751.0,1.49924594]
[1722320881717,0.001,66752.0,66751.0,1.50924594]
[1722320882129,0.001,66752.0,66751.0,1.38476473]
[1722320882327,0.001,66752.0,66751.0,1.39876473]
[1722320882527,0.001,66752.0,66751.0,1.76294228]
[1722320882728,0.001,66752.0,66751.0,1.78294228]
[1722320883144,0.001,66752.0,66751.0,1.76294228]
[1722320883984,0.001,66752.0,66751.0,1.52324628]
[1722320884699,0.001,66752.0,66751.0,1.51324628]
[1722320884923,0.001,66752.0,66751.0,1.41334628]
[1722320885108,0.001,66752.0,66751.0,1.34874628]
[1722320885257,0.02449992,66752.0,66751.0,1.34874628]
[1722320885468,0.02449992,66752.0,66751.0,1.22426473]
[1722320885790,0.001,66752.0,66751.0,1.34875445]
[1722320887403,0.001,66752.0,66751.0,1.34875392]
[1722320888461,0.02450031,66752.0,66751.0,1.43775392]
[1722320888589,0.02450031,66752.0,66751.0,1.44975392]
[1722320888794,0.001,66752.0,66751.0,1.46974641]
[1722320888981,0.001,66752.0,66751.0,1.971511]
[1722320890321,0.00083,66765.0,66764.0,0.868825]
[1722320890548,0.00083,66765.0,66764.0,1.31120668]
[1722320890736,0.00083,66765.0,66764.0,1.31397676]
[1722320891750,0.00083,66765.0,66764.0,1.4786098]
[1722320891958,0.00083,66765.0,66764.0,1.7532598]
[1722320891959,0.02432661,66765.0,66764.0,1.7532598]
[1722320892159,0.02432661,66765.0,66764.0,1.7412598]
[1722320892362,0.02432661,66765.0,66764.0,1.7392598]
[1722320892583,0.02432661,66765.0,66764.0,1.97620198]
[1722320892794,0.02432661,66765.0,66764.0,1.9459]
[1722320892985,0.02432661,66765.0,66764.0,1.9599]
[1722320892986,0.00083,66765.0,66764.0,1.9599]
[1722320893523,0.00083,66765.0,66764.0,1.99819965]
[1722320893818,0.00083,66765.0,66764.0,2.02619965]
[1722320894002,0.00083,66765.0,66764.0,1.9739]
[1722320894208,0.00083,66765.0,66764.0,1.95988554]
[1722320894440,0.00083,66765.0,66764.0,2.0121909]
[1722320894717,0.00083,66765.0,66764.0,1.76522109]
[1722320895123,0.00083,66765.0,66764.0,1.64077812]
[1722320895459,0.00083,66765.0,66764.0,1.78522638]
[1722320895661,0.00083,66765.0,66764.0,1.76522638]
[1722320895814,0.00083,66765.0,66764.0,1.79415378]
[1722320896211,0.00083,66765.0,66764.0,1.77415378]
[1722320896418,0.02432382,66765.0,66764.0,1.79415378]
[1722320897137,0.02432382,66765.0,66764.0,1.79615378]
[1722320898134,0.02432382,66765.0,66764.0,1.77415378]
[1722320898342,0.02432382,66765.0,66764.0,1.64970552]
[1722320898548,0.02432382,66765.0,66764.0,1.77415346]
[1722320901459,0.02432382,66765.0,66764.0,1.70885346]
[1722320901728,0.02432382,66765.0,66764.0,1.58440552]
[1722320901941,0.02432382,66765.0,66764.0,1.70886399]
[1722320902093,0.06453,66765.0,66764.0,1.30661399]
[1722320902293,0.06453,66765.0,66764.0,0.39917248]
[1722320902497,0.06453,66765.0,66764.0,0.15952248]
[1722320902714,0.06453,66765.0,66764.0,0.39917248]
[1722320903405,0.06453,66765.0,66764.0,0.38517248]
[1722320903830,0.14003,66765.0,66764.0,0.23152248]
[1722320904234,0.14003,66765.0,66764.0,0.24552248]
[1722320904649,0.14003,66765.0,66764.0,0.47117248]
[1722320904861,0.14003,66765.0,66764.0,0.48517248]
[1722320905064,0.14003,66765.0,66764.0,0.72482248]
[1722320905264,0.14003,66765.0,66764.0,0.73882248]
[1722320905463,0.06453,66765.0,66764.0,0.73882248]
[1722320905630,0.06453,66765.0,66764.0,0.72482248]
[1722320905836,0.06453,66765.0,66764.0,0.73882248]
[1722320906172,0.00083,66765.0,66764.0,0.73882248]
[1722320906377,0.00083,66765.0,66764.0,0.97847248]
[1722320906581,0.02432592,66765.0,66764.0,1.11694072]
[1722320906783,0.02432592,66765.0,66764.0,1.25357376]
[1722320906987,0.00083,66765.0,66764.0,1.30662376]
[1722320907182,0.00083,66765.0,66764.0,1.32062376]
[1722320907780,0.00083,66765.0,66764.0,1.30662376]
[1722320907978,0.00083,66765.0,66764.0,1.32062376]
[1722320908204,0.00083,66765.0,66764.0,1.32061936]
[1722320908579,0.00083,66765.0,66764.0,1.30661936]
[1722320908781,0.00083,66765.0,66764.0,1.32061936]
[1722320909168,0.00083,66765.0,66764.0,1.29261936]
[1722320909833,0.02432524,66765.0,66764.0,1.30661936]
[1722320910032,0.00083,66765.0,66764.0,1.30661936]
[1722320910206,0.00083,66765.0,66764.0,1.29261936]
[1722320910408,0.00083,66765.0,66764.0,1.30661936]
[1722320911229,0.00083,66765.0,66764.0,1.13298632]
[1722320911401,0.00083,66765.0,66764.0,1.20988632]
[1722320912140,0.00083,66765.0,66764.0,1.08542248]
[1722320912346,0.00083,66765.0,66764.0,1.20989081]
[1722320913347,0.02432542,66765.0,66764.0,1.20989081]
[1722320913688,0.00083,66765.0,66764.0,1.20989081]
[1722320913886,0.00083,66765.0,66764.0,1.08542248]
[1722320914005,0.00083,66765.0,66764.0,1.20989081]
[1722320914918,0.00083,66765.0,66764.0,1.20989103]
[1722320915337,0.00083,66765.0,66764.0,1.20989093]
[1722320916952,0.02432556,66765.0,66764.0,1.20989093]
[1722320917381,0.00083,66765.0,66764.0,1.20989093]
[1722320918274,0.00083,66765.0,66764.0,1.08542248]
[1722320918445,0.00083,66765.0,66764.0,1.20989093]
[1722320918645,0.00083,66765.0,66764.0,0.97024093]
[1722320918846,0.06373,66765.0,66764.0,0.86329093]
[1722320919630,0.06373,66765.0,66764.0,0.83529093]
[1722320920092,0.06373,66765.0,66764.0,0.84929093]
[1722320920470,0.06373,66765.0,66764.0,0.83529093]
[1722320920649,0.06373,66765.0,66764.0,0.84929093]
[1722320921701,0.06373,66765.0,66764.0,0.8492954]
[1722320922003,0.08722555,66765.0,66764.0,0.8632954]
[1722320922232,0.06373,66765.0,66764.0,0.73855348]
[1722320922366,0.06373,66765.0,66764.0,0.8490264]
[1722320922585,0.06373,66765.0,66764.0,0.8630264]
[1722320922903,0.06373,66765.0,66764.0,0.8490264]
[1722320923111,0.06373,66765.0,66764.0,0.8630264]
[1722320925065,0.06373,66765.0,66764.0,0.86302639]
[1722320925066,0.08722581,66765.0,66764.0,0.86302639]
[1722320926716,0.06373,66765.0,66764.0,0.86302639]
[1722320927820,0.00083,66765.0,66764.0,0.86302639]
[1722320928439,0.00083,66765.0,66764.0,0.86302638]
[1722320929836,0.0243257,66765.0,66764.0,0.86302638]
[1722320930061,0.00083,66765.0,66764.0,0.86302638]
[1722320930636,0.00083,66765.0,66764.0,1.03665942]
[1722320930813,0.00083,66765.0,66764.0,1.04665942]
[1722320931016,0.00083,66765.0,66764.0,1.36400942]
[1722320931267,0.00083,66765.0,66764.0,1.35400942]
[1722320931415,0.00083,66765.0,66764.0,1.36600942]
[1722320931620,0.00083,66765.0,66764.0,1.36599829]
[1722320932047,0.00083,66765.0,66764.0,1.35399829]
[1722320932255,0.00083,66765.0,66764.0,1.36599828]
[1722320932816,0.00083,66765.0,66764.0,1.35399828]
[1722320933422,0.02432382,66765.0,66764.0,1.35399828]
[1722320934055,0.02432382,66765.0,66764.0,1.36599828]
[1722320934387,0.02432382,66765.0,66764.0,1.35399828]
[1722320934589,0.00083,66765.0,66764.0,1.35399828]
[1722320936228,0.00083,66765.0,66764.0,1.35491128]
[1722320936738,0.00083,66765.0,66764.0,1.35491127]
[1722320941738,0.00083,66765.0,66764.0,1.35491153]
[1722320943344,0.00083,66765.0,66764.0,1.23044952]
[1722320943584,0.00083,66765.0,66764.0,1.35491131]
[1722320944016,0.00083,66765.0,66764.0,1.35491129]
[1722320948470,0.02432399,66765.0,66764.0,1.35491129]
[1722320949376,0.00083,66765.0,66764.0,1.35491129]
[1722320950543,0.00083,66765.0,66764.0,1.35491131]
[1722320951000,0.00083,66765.0,66764.0,1.23044952]
[1722320951231,0.00083,66765.0,66764.0,1.35491131]
[1722320951812,0.00083,66765.0,66764.0,1.27721131]
[1722320952414,0.00083,66765.0,66764.0,1.61519054]
[1722320952658,0.02432377,66765.0,66764.0,1.61519609]
[1722320952837,0.02432377,66765.0,66764.0,1.85484609]
[1722320953156,0.00083,66765.0,66764.0,1.87484609]
[1722320953364,0.00083,66765.0,66764.0,1.87684609]
[1722320953703,0.00083,66765.0,66764.0,1.85483012]
[1722320953905,0.00083,66765.0,66764.0,1.87483012]
[1722320955204,0.00083,66765.0,66764.0,1.85483012]
[1722320955578,0.00083,66765.0,66764.0,1.87683012]
[1722320956240,0.0607,66779.0,66777.0,0.239603]
[1722320956472,0.0607,66779.0,66778.0,0.58385024]
[1722320956652,0.0607,66779.0,66778.0,1.0657432]
[1722320957111,0.0607,66779.0,66778.0,1.06573961]
[1722320957858,0.0607,66779.0,66778.0,1.07973961]
[1722320958473,0.0449444,66781.0,66780.0,0.838572]
[1722320958693,0.09071881,66785.0,66784.0,0.359367]
[1722320958694,0.00083,66785.0,66784.0,0.359367]
[1722320958916,0.00083,66785.0,66784.0,1.24634965]
[1722320959130,0.00083,66785.0,66784.0,1.34624965]
[1722320959886,0.02431953,66785.0,66784.0,1.34624965]
[1722320960131,0.02431953,66785.0,66784.0,1.35524965]
[1722320960424,0.02431953,66785.0,66784.0,1.221801]
[1722320960651,0.00083,66785.0,66784.0,1.36022382]
[1722320961174,0.00083,66785.0,66784.0,1.74680126]
[1722320961398,0.00083,66785.0,66784.0,1.73280126]
[1722320961590,0.00083,66785.0,66784.0,1.75680126]
[1722320961800,0.00083,66785.0,66784.0,1.74680126]
[1722320962273,0.00083,66785.0,66784.0,1.76080126]
[1722320962670,0.00083,66785.0,66784.0,1.7467984]
[1722320962873,0.00083,66785.0,66784.0,1.7327984]
[1722320963077,0.00083,66785.0,66784.0,1.7467984]
[1722320963307,0.00083,66785.0,66784.0,1.7607984]
[1722320963638,0.00083,66785.0,66784.0,1.7467984]
[1722320963639,0.02431889,66785.0,66784.0,1.7467984]
[1722320963838,0.02431889,66785.0,66784.0,1.7607984]
[1722320965320,0.00083,66785.0,66784.0,1.7607984]
[1722320966876,0.00083,66785.0,66784.0,1.76079829]
[1722320967878,0.00083,66785.0,66784.0,1.69449829]
[1722320968669,0.02431889,66785.0,66784.0,1.69449829]
[1722320968866,0.02431889,66785.0,66784.0,1.70449829]
[1722320969068,0.02431889,66785.0,66784.0,1.70649829]
[1722320969554,0.02431889,66785.0,66784.0,1.77249829]
[1722320969750,0.02431889,66785.0,66784.0,1.79249829]
[1722320970308,0.02431889,66785.0,66784.0,1.79249096]
[1722320972524,0.02431889,66785.0,66784.0,1.79249078]
[1722320973466,0.02431889,66785.0,66784.0,1.79248999]
[1722320975425,0.02431889,66785.0,66784.0,1.668079]
[1722320975780,0.02431889,66785.0,66784.0,1.79248864]
[1722320976881,0.02431889,66785.0,66784.0,1.79248883]
[1722320977257,0.00038924,66785.0,66784.0,1.79248883]
[1722320977459,0.00844,66786.0,66785.0,1.138133]
[1722320977649,0.00844,66786.0,66785.0,1.68147587]
[1722320977843,0.00844,66786.0,66785.0,1.68408687]
[1722320978262,0.00844,66786.0,66785.0,1.76098687]
[1722320979256,0.00844,66786.0,66785.0,1.77498687]
[1722320979905,0.00844,66786.0,66785.0,1.78898687]
[1722320980107,0.00844,66786.0,66785.0,1.66457704]
[1722320980340,0.00844,66786.0,66785.0,1.79098644]
[1722320980749,0.03192758,66786.0,66785.0,1.66657704]
[1722320980949,0.03192758,66786.0,66785.0,1.79098644]
[1722320983657,0.03192758,66786.0,66785.0,1.79098643]
[1722320986090,0.00844,66786.0,66785.0,1.79098643]
[1722320986837,0.00844,66786.0,66785.0,1.79098666]
[1722320987240,0.00844,66786.0,66785.0,1.97760109]
[1722320989326,0.03192778,66786.0,66785.0,1.97760109]
[1722320989933,0.00844,66786.0,66785.0,1.97760109]
[1722320990789,0.00844,66786.0,66785.0,1.98673937]
[1722320992481,0.00844,66786.0,66785.0,1.98673938]
[1722320993495,0.00844,66786.0,66785.0,1.98673937]
[1722320993697,0.00844,66786.0,66785.0,1.88783937]
[1722320993895,0.00844,66786.0,66785.0,1.96473937]
[1722320994897,0.00844,66786.0,66785.0,1.98473937]
[1722320996022,0.00844,66786.0,66785.0,1.96473937]
[1722320996223,1e-08,66786.0,66785.0,1.98673937]
[1722320996826,0.00844,66791.0,66790.0,1.266452]
[1722320997048,0.00844,66791.0,66790.0,2.08756365]
[1722320997208,0.07434,66801.0,66799.0,0.67571]
[1722320997410,0.07434,66801.0,66799.0,1.21327608]
[1722320997613,0.05192554,66800.0,66799.0,1.31546211]
[1722320998936,0.12952554,66800.0,66799.0,1.31546211]
[1722320999138,0.12952554,66800.0,66799.0,1.32946211]
[1722320999139,0.19012554,66800.0,66799.0,1.32946211]
[1722320999367,0.16664,66800.0,66799.0,1.34346211]
[1722321000209,0.16664,66800.0,66799.0,1.34344863]
[1722321000637,0.16664,66800.0,66799.0,1.34344874]
[1722321002138,0.16164,66800.0,66799.0,1.34344874]
[1722321002343,0.16164,66800.0,66799.0,1.34344864]
[1722321002549,0.18512451,66800.0,66799.0,1.34344864]
[1722321002747,0.16164,66800.0,66799.0,1.34344864]
[1722321004129,0.16164,66800.0,66799.0,1.35258318]
[1722321008751,0.16164,66800.0,66799.0,1.22818761]
[1722321008970,0.16164,66800.0,66799.0,1.35258317]
[1722321012129,0.16164,66800.0,66799.0,1.22818761]
[1722321012339,0.16164,66800.0,66799.0,1.35258319]
[1722321012536,0.08404,66800.0,66799.0,1.35258319]
[1722321012736,0.02344,66800.0,66799.0,1.35258319]
[1722321014496,0.02344,66800.0,66799.0,1.35258227]
[1722321014918,0.00488487,66801.0,66800.0,0.87032]
[1722321015114,0.0638,66817.0,66804.0,0.809415]
[1722321015274,0.0638,66817.0,66804.0,1.37645404]
[1722321015472,0.0638,66817.0,66804.0,2.18937849]
[1722321015812,0.0638,66817.0,66804.0,1.94987249]
[1722321015813,0.03192006,66805.0,66804.0,1.94987249]
[1722321016444,0.03192006,66805.0,66804.0,1.96387249]
[1722321017119,0.03192006,66805.0,66804.0,1.97787249]
[1722321017707,0.03192006,66805.0,66804.0,1.99441321]
[1722321018319,0.03192006,66805.0,66804.0,1.95241321]
[1722321018536,0.03192006,66805.0,66804.0,1.95241841]
[1722321018760,0.03192006,66805.0,66804.0,1.98041841]
[1722321018931,0.03192006,66805.0,66804.0,1.96641841]
[1722321019335,0.02292006,66805.0,66804.0,1.98041841]
[1722321019761,0.0638,66817.0,66805.0,1.139813]
[1722321019983,0.0638,66817.0,66805.0,1.7766081]
[1722321020193,0.0638,66817.0,66805.0,1.77911367]
[1722321020387,0.0638,66817.0,66805.0,1.54031867]
[1722321021535,0.0950979,66818.0,66805.0,1.55431867]
[1722321021744,0.0617,66810.0,66805.0,1.42995161]
[1722321021960,0.0617,66810.0,66805.0,1.55431856]
[1722321022158,0.0617,66810.0,66805.0,1.56831856]
[1722321022330,0.0617,66810.0,66805.0,1.56831866]
[1722321022769,0.0617,66810.0,66805.0,1.54631866]
[1722321022979,0.0617,66810.0,66805.0,1.35971566]
[1722321023156,0.14764,66806.0,66805.0,0.15487262]
[1722321023369,0.14764,66806.0,66805.0,0.13625657]
[1722321023579,0.14764,66806.0,66805.0,0.61526257]
[1722321023758,0.14764,66806.0,66805.0,0.75365627]
[1722321023962,0.14764,66806.0,66805.0,1.14379231]
[1722321023963,0.00844,66806.0,66805.0,1.14379231]
[1722321024119,0.00844,66806.0,66805.0,1.15983983]
[1722321024319,0.00844,66806.0,66805.0,1.23673983]
[1722321024553,0.00844,66806.0,66805.0,1.35073983]
[1722321024910,0.00844,66806.0,66805.0,1.33673883]
[1722321025349,0.00844,66806.0,66805.0,1.59024183]
[1722321025563,0.00844,66806.0,66805.0,1.61324183]
[1722321028159,0.00844,66806.0,66805.0,1.53634183]
[1722321028364,0.00844,66806.0,66805.0,1.61324183]
[1722321028803,0.00844,66806.0,66805.0,1.37373883]
[1722321029355,0.00844,66806.0,66805.0,1.27383883]
[1722321029556,0.15174,66806.0,66805.0,1.27383883]
[1722321031276,0.15174,66806.0,66805.0,1.27383672]
[1722321031903,0.15174,66806.0,66805.0,1.27383662]
[1722321032104,0.15174,66806.0,66805.0,1.27383663]
[1722321032910,0.07264,66806.0,66805.0,1.27383663]
[1722321033299,0.00844,66806.0,66805.0,1.27383663]
[1722321033504,0.00844,66806.0,66805.0,1.14944861]
[1722321033705,0.00844,66806.0,66805.0,1.27383661]
[1722321034110,0.00844,66806.0,66805.0,1.27474961]
[1722321034599,0.00844,66806.0,66805.0,1.27474902]
[1722321034782,0.00844,66806.0,66805.0,1.29774902]
[1722321035013,0.00844,66806.0,66805.0,1.56925202]
[1722321035140,0.00844,66806.0,66805.0,1.69415202]
[1722321035541,0.00844,66806.0,66805.0,1.71415202]
[1722321035747,0.00844,66806.0,66805.0,1.56976461]
[1722321035950,0.00844,66806.0,66805.0,1.71414266]
[1722321036187,0.00844,66806.0,66805.0,1.9529784]
[1722321036585,0.00844,66806.0,66805.0,1.88070672]
[1722321036803,0.00844,66806.0,66805.0,1.71414266]
[1722321036968,0.00844,66806.0,66805.0,1.95297222]
[1722321037165,0.00844,66806.0,66805.0,1.69414266]
[1722321037364,0.00844,66806.0,66805.0,1.62954266]
[1722321037731,0.00844,66806.0,66805.0,1.52516461]
[1722321037930,0.00844,66806.0,66805.0,1.89036672]
[1722321038224,0.00844,66806.0,66805.0,1.83809754]
[1722321039792,0.00844,66806.0,66805.0,1.91299754]
[1722321040202,0.00844,66806.0,66805.0,1.91499754]
[1722321040405,0.00844,66806.0,66805.0,1.90099754]
[1722321040610,0.00844,66806.0,66805.0,1.91499754]
[1722321041182,0.00844,66806.0,66805.0,2.20049419]
[1722321041394,0.00844,66816.0,66815.0,0.868184]
[1722321041673,0.00844,66816.0,66815.0,1.34308352]
[1722321041821,0.00844,66816.0,66815.0,1.58494269]
[1722321042248,0.06944,66816.0,66815.0,1.58494269]
[1722321042423,0.15264,66816.0,66815.0,1.58494269]
[1722321042631,0.15264,66816.0,66815.0,1.59894269]
[1722321043398,0.06944,66816.0,66815.0,1.48857621]
[1722321043572,0.06944,66816.0,66815.0,1.6129425]
[1722321044411,0.06944,66816.0,66815.0,1.61294228]
[1722321047651,0.06944,66816.0,66815.0,1.61294239]
[1722321049223,0.06944,66816.0,66815.0,1.37347539]
[1722321049423,0.14714,66816.0,66815.0,1.29657539]
[1722321050361,0.14714,66816.0,66815.0,1.30531824]
[1722321050743,0.14714,66816.0,66815.0,1.18095206]
[1722321050905,0.14714,66816.0,66815.0,1.30532308]
[1722321051110,0.14714,66816.0,66815.0,1.28232308]
[1722321051367,0.14714,66816.0,66815.0,1.15795206]
[1722321051565,0.14714,66816.0,66815.0,1.28232308]
[1722321053021,0.14714,66816.0,66815.0,1.15795206]
[1722321053221,0.14714,66816.0,66815.0,1.28232311]
[1722321057402,0.14714,66816.0,66815.0,1.15795206]
[1722321057600,0.14714,66816.0,66815.0,1.28232297]
[1722321058288,0.00844,66816.0,66815.0,1.28232297]
[1722321058514,0.00844,66816.0,66815.0,1.30532297]
[1722321059138,0.00844,66816.0,66815.0,1.29132297]
[1722321059358,0.00844,66816.0,66815.0,1.27732297]
[1722321059542,0.00844,66816.0,66815.0,1.29132297]
[1722321059761,0.00844,66816.0,66815.0,1.30532297]
[1722321060475,0.00844,66816.0,66815.0,1.54418924]
[1722321060667,0.00844,66816.0,66815.0,1.54415892]
[1722321061246,0.00844,66816.0,66815.0,1.18095206]
[1722321061494,0.00844,66816.0,66815.0,1.54415912]
[1722321061700,0.00844,66816.0,66815.0,1.47784924]
[1722321061903,0.07144,66816.0,66815.0,1.25431093]
[1722321062096,0.07144,66816.0,66815.0,1.26831093]
[1722321062357,0.07144,66816.0,66815.0,1.28231093]
[1722321063230,0.07144,66816.0,66815.0,1.28232346]
[1722321065011,0.07144,66816.0,66815.0,0.38323942]
[1722321065012,0.15414,66816.0,66815.0,0.38323942]
[1722321065305,0.15414,66816.0,66815.0,0.62270642]
[1722321065505,0.15414,66816.0,66815.0,0.86217342]
[1722321065819,0.15535425,66816.0,66815.0,0.84817342]
[1722321065962,0.15535425,66816.0,66815.0,0.59470642]
[1722321066167,0.15414,66816.0,66815.0,0.62270642]
[1722321066370,0.15414,66816.0,66815.0,0.49833502]
[1722321066577,0.15414,66816.0,66815.0,0.59471364]
[1722321066791,0.15414,66816.0,66815.0,0.14077079]
[1722321066792,0.19903007,66816.0,66815.0,0.14077079]
[1722321066991,0.22268935,66816.0,66815.0,0.03039217]
[1722321067198,0.15535425,66816.0,66815.0,0.03039217]
[1722321068074,0.15535425,66816.0,66815.0,0.01639217]
[1722321068350,0.15535425,66816.0,66815.0,0.03039217]
[1722321068688,0.15535425,66816.0,66815.0,0.00239217]
[1722321068889,0.15535425,66816.0,66815.0,0.014]
[1722321069097,0.15535425,66816.0,66815.0,0.147733]
[1722321069301,0.15535425,66816.0,66815.0,0.03037069]
[1722321069570,0.15535425,66816.0,66815.0,0.13610369]
[1722321069763,0.20024838,66816.0,66815.0,0.13610369]
[1722321069965,0.20024838,66816.0,66815.0,0.260488]
[1722321070197,0.20024838,66816.0,66815.0,0.13610369]
[1722321070198,0.15414,66816.0,66815.0,0.13610369]
[1722321070414,0.20024742,66816.0,66815.0,0.4999547]
[1722321070606,0.20024742,66816.0,66815.0,0.2744877]
[1722321070807,0.15414,66816.0,66815.0,0.2744877]
[1722321071187,0.15535425,66816.0,66815.0,0.5139547]
[1722321071528,0.15535425,66816.0,66815.0,0.38957069]
[1722321071726,0.22269566,66816.0,66815.0,0.38957069]
[1722321071933,0.15414,66816.0,66815.0,0.38957069]
[1722321072140,0.15535425,66816.0,66815.0,0.15010369]
[1722321072351,0.24514279,66816.0,66815.0,0.03037069]
[1722321072555,0.15414,66816.0,66815.0,0.15010369]
[1722321072775,0.15414,66816.0,66815.0,0.38957069]
[1722321072776,0.15535425,66816.0,66815.0,0.38957069]
[1722321072987,0.20025121,66816.0,66815.0,0.51395344]
[1722321073198,0.19903758,66816.0,66815.0,0.51395689]
[1722321073408,0.19903758,66816.0,66815.0,0.38957069]
[1722321073617,0.15414,66816.0,66815.0,0.38957069]
[1722321073824,0.22148544,66816.0,66815.0,0.38957069]
[1722321074291,0.22148544,66816.0,66815.0,0.03037069]
[1722321074488,0.15535425,66816.0,66815.0,0.03037069]
[1722321075089,0.15535425,66816.0,66815.0,0.028]
[1722321075288,0.15414,66816.0,66815.0,0.03037937]
[1722321075496,0.15535425,66816.0,66815.0,0.03037937]
[1722321076320,0.67295866,66816.0,66815.0,0.03037937]
[1722321076492,0.67174441,66816.0,66815.0,0.03037937]
[1722321076833,0.67174441,66816.0,66815.0,0.028]
[1722321077334,0.67295866,66816.0,66815.0,0.028]
[1722321077538,0.67174441,66816.0,66815.0,0.028]
[1722321078146,0.67227919,66816.0,66815.0,0.028]
[1722321078307,0.67174441,66816.0,66815.0,0.028]
[1722321078630,0.590234,66816.0,66815.0,0.028]
[1722321078787,0.70244485,66816.0,66815.0,0.028]
[1722321078989,0.62554376,66816.0,66815.0,0.028]
[1722321079390,0.62553138,66816.0,66815.0,0.03038606]
[1722321079715,0.0611,66813.0,66811.0,0.028]
[1722321079915,0.0766,66811.0,66810.0,0.12861559]
[1722321080113,0.1377,66811.0,66810.0,0.12861559]
[1722321080348,0.1377,66811.0,66810.0,0.00887359]
[1722321080727,0.18258055,66811.0,66809.0,0.119744]
[1722321081270,0.18258055,66811.0,66808.0,0.239491]
[1722321081271,0.1377,66811.0,66808.0,0.239491]
[1722321081552,0.1377,66811.0,66809.0,0.119742]
[1722321082591,0.1387,66811.0,66810.0,0.133742]
[1722321082936,0.1377,66811.0,66810.0,0.119742]
[1722321083343,0.1387,66811.0,66810.0,0.119742]
[1722321084105,0.1387,66811.0,66809.0,0.126743]
[1722321084596,0.1397,66811.0,66810.0,0.120742]
[1722321084792,0.1387,66811.0,66810.0,0.12313886]
[1722321084993,0.1387,66811.0,66810.0,0.13613886]
[1722321084994,0.1377,66811.0,66810.0,0.13613886]
[1722321085251,0.1387,66811.0,66810.0,0.13613886]
[1722321085469,0.1397,66811.0,66810.0,0.12213886]
[1722321085755,0.1407,66811.0,66810.0,0.12213886]
[1722321085980,0.1377,66811.0,66810.0,0.12213886]
[1722321086133,0.0877,66811.0,66810.0,0.12213886]
[1722321086348,0.0887,66811.0,66810.0,0.13613886]
[1722321087208,0.0887,66811.0,66810.0,0.15013886]
[1722321087209,0.0897,66811.0,66810.0,0.15013886]
[1722321087410,0.0897,66811.0,66810.0,0.03039686]
[1722321087613,0.0897,66811.0,66810.0,0.15013886]
[1722321088342,0.0897,66811.0,66810.0,0.03039686]
[1722321089301,0.0897,66811.0,66810.0,0.03065995]
[1722321089517,0.0897,66811.0,66810.0,0.03039686]
[1722321090137,0.0897,66811.0,66810.0,0.15013886]
[1722321091129,0.002,66811.0,66810.0,0.99298634]
[1722321091336,0.002,66811.0,66810.0,1.14361938]
[1722321091544,0.002,66811.0,66810.0,1.31981938]